[Event "Titled Tuesday Blitz January 10 Early 2023"]
[White "Kukhmazov, Arsen"]
[Black "Czernek, Tymon"]
[WhiteFideId "24108260"]
[BlackFideId "1199510"]
[WhiteElo "2512"]
[BlackElo "2314"]
[Result "0-1"]
[Round "11"]
[TimeControl "180+2"]
[Date "2023.01.10"]
[WhiteClock "0:00:04"]
[BlackClock "0:00:14"]

1. d4 {[%clk 0:03:00]}  Nf6 {[%clk 0:02:59]} 2. c4 {[%clk 0:03:00]}  e6 {[%clk 0:02:58]} 3. Nf3 {[%clk 0:03:00]}  d5 {[%clk 0:02:59]} 4. Nc3 {[%clk 0:02:59]}  Bb4 {[%clk 0:02:58]} 5. Bg5 {[%clk 0:02:53]}  dxc4 {[%clk 0:02:50]} 6. e4 {[%clk 0:02:52]}  c5 {[%clk 0:02:48]} 7. Bxc4 {[%clk 0:02:50]}  cxd4 {[%clk 0:02:47]} 8. Nxd4 {[%clk 0:02:51]}  Qa5 {[%clk 0:02:45]} 9. Bb5+ {[%clk 0:02:25]}  Bd7 {[%clk 0:02:37]} 10. Bxf6 {[%clk 0:01:55]}  Bxb5 {[%clk 0:01:23]} 11. Nxb5 {[%clk 0:01:37]}  gxf6 {[%clk 0:01:23]} 12. O-O {[%clk 0:01:28]}  Nc6 {[%clk 0:01:18]} 13. Nd6+ {[%clk 0:01:01]}  Ke7 {[%clk 0:01:14]} 14. Nc4 {[%clk 0:01:00]}  Qc5 {[%clk 0:01:10]} 15. Rc1 {[%clk 0:00:54]}  Qxc4 {[%clk 0:01:05]} 16. Nd5+ {[%clk 0:00:52]}  exd5 {[%clk 0:01:06]} 17. Rxc4 {[%clk 0:00:52]}  dxc4 {[%clk 0:01:07]} 18. Qd5 {[%clk 0:00:45]}  Rad8 {[%clk 0:01:06]} 19. Qxc4 {[%clk 0:00:45]}  Rd6 {[%clk 0:01:02]} 20. Qb5 {[%clk 0:00:45]}  b6 {[%clk 0:00:59]} 21. h4 {[%clk 0:00:37]}  Bc5 {[%clk 0:00:55]} 22. a3 {[%clk 0:00:34]}  a5 {[%clk 0:00:52]} 23. Rc1 {[%clk 0:00:30]}  Rhd8 {[%clk 0:00:50]} 24. b4 {[%clk 0:00:29]}  axb4 {[%clk 0:00:49]} 25. axb4 {[%clk 0:00:30]}  Nxb4 {[%clk 0:00:48]} 26. Kh2 {[%clk 0:00:30]}  Nd3 {[%clk 0:00:46]} 27. Ra1 {[%clk 0:00:29]}  Nxf2 {[%clk 0:00:43]} 28. Ra7+ {[%clk 0:00:29]}  R8d7 {[%clk 0:00:43]} 29. Rxd7+ {[%clk 0:00:30]}  Rxd7 {[%clk 0:00:44]} 30. Qc6 {[%clk 0:00:30]}  Ng4+ {[%clk 0:00:43]} 31. Kg3 {[%clk 0:00:31]}  Ne5 {[%clk 0:00:43]} 32. Qa8 {[%clk 0:00:30]}  Rd3+ {[%clk 0:00:42]} 33. Kf4 {[%clk 0:00:28]}  Ng6+ {[%clk 0:00:36]} 34. Kg4 {[%clk 0:00:28]}  Bd6 {[%clk 0:00:22]} 35. Kh5 {[%clk 0:00:21]}  Bf4 {[%clk 0:00:18]} 36. g4 {[%clk 0:00:18]}  Rh3 {[%clk 0:00:15]} 37. Qb7+ {[%clk 0:00:04]}  Kf8 {[%clk 0:00:14]} 0-1


[Site "https://www.chess.com"]

[Event "Titled Tuesday Blitz January 10 Early 2023"]
[White "Shipov, Sergei"]
[Black "Gaitan, Juan Manuel"]
[WhiteFideId "4113624"]
[BlackFideId "121657"]
[WhiteElo "2541"]
[BlackElo "2328"]
[Result "1/2-1/2"]
[Round "11"]
[TimeControl "180+2"]
[Date "2023.01.10"]
[WhiteClock "0:00:17"]
[BlackClock "0:00:20"]

1. d4 {[%clk 0:03:00]}  Nf6 {[%clk 0:02:59]} 2. c4 {[%clk 0:02:57]}  e6 {[%clk 0:02:57]} 3. Nc3 {[%clk 0:02:57]}  Bb4 {[%clk 0:02:57]} 4. Qc2 {[%clk 0:02:57]}  c5 {[%clk 0:02:55]} 5. dxc5 {[%clk 0:02:57]}  Na6 {[%clk 0:02:48]} 6. a3 {[%clk 0:02:57]}  Bxc3+ {[%clk 0:02:47]} 7. Qxc3 {[%clk 0:02:58]}  Nxc5 {[%clk 0:02:47]} 8. f3 {[%clk 0:02:59]}  d6 {[%clk 0:02:46]} 9. e4 {[%clk 0:02:58]}  b6 {[%clk 0:02:45]} 10. Be3 {[%clk 0:02:52]}  Bb7 {[%clk 0:02:45]} 11. Ne2 {[%clk 0:02:51]}  O-O {[%clk 0:02:43]} 12. Rd1 {[%clk 0:02:51]}  Qc7 {[%clk 0:02:43]} 13. Qc2 {[%clk 0:02:51]}  Rfd8 {[%clk 0:02:40]} 14. Nc3 {[%clk 0:02:51]}  a6 {[%clk 0:02:39]} 15. Be2 {[%clk 0:02:50]}  Rac8 {[%clk 0:02:39]} 16. O-O {[%clk 0:02:50]}  Qb8 {[%clk 0:02:14]} 17. b4 {[%clk 0:02:47]}  Ncd7 {[%clk 0:02:12]} 18. Qb3 {[%clk 0:02:47]}  d5 {[%clk 0:02:05]} 19. cxd5 {[%clk 0:02:46]}  exd5 {[%clk 0:02:04]} 20. exd5 {[%clk 0:02:29]}  Qe5 {[%clk 0:02:02]} 21. Bd4 {[%clk 0:02:25]}  Rxc3 {[%clk 0:02:00]} 22. Qxc3 {[%clk 0:02:01]}  Qxe2 {[%clk 0:01:59]} 23. Rfe1 {[%clk 0:02:00]}  Qa2 {[%clk 0:01:58]} 24. Qc7 {[%clk 0:02:01]}  Rc8 {[%clk 0:01:39]} 25. Qxb7 {[%clk 0:01:58]}  Rc2 {[%clk 0:01:39]} 26. Qb8+ {[%clk 0:01:50]}  Nf8 {[%clk 0:01:38]} 27. Bxf6 {[%clk 0:01:33]}  Rxg2+ {[%clk 0:01:26]} 28. Kh1 {[%clk 0:01:33]}  Rg6 {[%clk 0:01:26]} 29. Rg1 {[%clk 0:01:05]}  Rxf6 {[%clk 0:01:24]} 30. Qe5 {[%clk 0:00:34]}  Nd7 {[%clk 0:01:17]} 31. Qe8+ {[%clk 0:00:34]}  Nf8 {[%clk 0:01:17]} 32. d6 {[%clk 0:00:35]}  Qf2 {[%clk 0:01:13]} 33. Qe4 {[%clk 0:00:34]}  Re6 {[%clk 0:01:09]} 34. Qd5 {[%clk 0:00:24]}  Re2 {[%clk 0:00:58]} 35. Qh5 {[%clk 0:00:24]}  Nd7 {[%clk 0:00:57]} 36. Qh3 {[%clk 0:00:21]}  g6 {[%clk 0:00:56]} 37. Qg3 {[%clk 0:00:21]}  Qe3 {[%clk 0:00:53]} 38. Rge1 {[%clk 0:00:21]}  Nf6 {[%clk 0:00:34]} 39. Rxe2 {[%clk 0:00:21]}  Qxe2 {[%clk 0:00:35]} 40. Re1 {[%clk 0:00:21]}  Qd3 {[%clk 0:00:36]} 41. Kg2 {[%clk 0:00:19]}  Nh5 {[%clk 0:00:34]} 42. Qe5 {[%clk 0:00:18]}  Qd2+ {[%clk 0:00:32]} 43. Kh1 {[%clk 0:00:19]}  Nf4 {[%clk 0:00:30]} 44. Rg1 {[%clk 0:00:19]}  Nh3 {[%clk 0:00:21]} 45. Rf1 {[%clk 0:00:18]}  Nf2+ {[%clk 0:00:19]} 46. Kg1 {[%clk 0:00:17]}  Nh3+ {[%clk 0:00:19]} 47. Kh1 {[%clk 0:00:18]}  Nf2+ {[%clk 0:00:20]} 48. Kg1 {[%clk 0:00:17]}  Nh3+ {[%clk 0:00:20]} 49. Kh1 {[%clk 0:00:17]} 1/2-1/2


[Site "https://www.chess.com"]

[Event "Titled Tuesday Blitz January 10 Early 2023"]
[White "Andreev, Eduard"]
[Black "Cherniaiev, Tykhon"]
[WhiteFideId "14103400"]
[BlackFideId "14182360"]
[WhiteElo "2413"]
[BlackElo "2330"]
[Result "1/2-1/2"]
[Round "11"]
[TimeControl "180+2"]
[Date "2023.01.10"]
[WhiteClock "0:00:43"]
[BlackClock "0:00:27"]

1. e4 {[%clk 0:03:00]}  e5 {[%clk 0:02:59]} 2. Nf3 {[%clk 0:03:00]}  Nc6 {[%clk 0:02:58]} 3. d4 {[%clk 0:03:01]}  exd4 {[%clk 0:02:58]} 4. Nxd4 {[%clk 0:03:02]}  Nf6 {[%clk 0:02:58]} 5. Nxc6 {[%clk 0:03:01]}  bxc6 {[%clk 0:02:58]} 6. e5 {[%clk 0:03:02]}  Qe7 {[%clk 0:02:57]} 7. Qe2 {[%clk 0:03:02]}  Nd5 {[%clk 0:02:58]} 8. h4 {[%clk 0:03:02]}  d6 {[%clk 0:02:53]} 9. c4 {[%clk 0:02:59]}  Nb6 {[%clk 0:02:53]} 10. exd6 {[%clk 0:02:53]}  Qxe2+ {[%clk 0:02:53]} 11. Bxe2 {[%clk 0:02:53]}  cxd6 {[%clk 0:02:54]} 12. Nc3 {[%clk 0:02:50]}  Be7 {[%clk 0:02:53]} 13. Bf4 {[%clk 0:02:30]}  Be6 {[%clk 0:02:51]} 14. b3 {[%clk 0:02:25]}  d5 {[%clk 0:02:38]} 15. cxd5 {[%clk 0:02:05]}  Nxd5 {[%clk 0:02:39]} 16. Nxd5 {[%clk 0:02:04]}  Bxd5 {[%clk 0:02:40]} 17. Kf1 {[%clk 0:01:41]}  a5 {[%clk 0:02:38]} 18. Bc4 {[%clk 0:01:39]}  a4 {[%clk 0:02:34]} 19. Re1 {[%clk 0:01:32]}  Kd7 {[%clk 0:02:33]} 20. Rh3 {[%clk 0:01:09]}  axb3 {[%clk 0:02:08]} 21. axb3 {[%clk 0:01:07]}  Bd6 {[%clk 0:01:35]} 22. Bxd6 {[%clk 0:01:02]}  Kxd6 {[%clk 0:01:36]} 23. Rd3 {[%clk 0:00:57]}  Rhd8 {[%clk 0:01:20]} 24. Red1 {[%clk 0:00:54]}  Kc5 {[%clk 0:01:15]} 25. Rc1 {[%clk 0:00:44]}  Kd6 {[%clk 0:01:05]} 26. Rcd1 {[%clk 0:00:43]}  Kc5 {[%clk 0:00:53]} 27. Rc1 {[%clk 0:00:43]}  Kd6 {[%clk 0:00:27]} 28. Rcd1 {[%clk 0:00:43]} 1/2-1/2


[Site "https://www.chess.com"]

[Event "Titled Tuesday Blitz January 10 Early 2023"]
[White "Skvortsov, Andrei"]
[Black "marik_spb"]
[WhiteFideId "24108600"]
[WhiteElo "2313"]
[BlackElo "2432"]
[Result "1-0"]
[Round "11"]
[TimeControl "180+2"]
[Date "2023.01.10"]
[WhiteClock "0:00:09"]
[BlackClock "0:00:01"]

1. e4 {[%clk 0:02:58]}  c6 {[%clk 0:02:34]} 2. e5 {[%clk 0:02:50]}  d5 {[%clk 0:02:33]} 3. exd6 {[%clk 0:02:50]}  exd6 {[%clk 0:02:33]} 4. d4 {[%clk 0:02:51]}  Nf6 {[%clk 0:02:33]} 5. Nf3 {[%clk 0:02:52]}  Bf5 {[%clk 0:02:33]} 6. Bd3 {[%clk 0:02:52]}  Bxd3 {[%clk 0:02:31]} 7. Qxd3 {[%clk 0:02:53]}  Be7 {[%clk 0:02:28]} 8. O-O {[%clk 0:02:51]}  O-O {[%clk 0:02:29]} 9. c4 {[%clk 0:02:49]}  d5 {[%clk 0:02:29]} 10. b3 {[%clk 0:02:49]}  Ne4 {[%clk 0:02:29]} 11. cxd5 {[%clk 0:02:47]}  cxd5 {[%clk 0:02:29]} 12. Nc3 {[%clk 0:02:47]}  Nxc3 {[%clk 0:02:29]} 13. Qxc3 {[%clk 0:02:47]}  Nc6 {[%clk 0:02:29]} 14. Bf4 {[%clk 0:02:43]}  Rc8 {[%clk 0:02:29]} 15. Qd2 {[%clk 0:02:42]}  Qb6 {[%clk 0:02:25]} 16. h4 {[%clk 0:02:37]}  Qb4 {[%clk 0:02:21]} 17. Qd3 {[%clk 0:02:35]}  Bf6 {[%clk 0:02:18]} 18. Rad1 {[%clk 0:02:10]}  Rfe8 {[%clk 0:02:17]} 19. Bg5 {[%clk 0:02:04]}  Qd6 {[%clk 0:01:58]} 20. Rfe1 {[%clk 0:01:49]}  Rxe1+ {[%clk 0:01:53]} 21. Rxe1 {[%clk 0:01:50]}  Bxg5 {[%clk 0:01:46]} 22. Qf5 {[%clk 0:01:26]}  Rd8 {[%clk 0:01:15]} 23. Nxg5 {[%clk 0:01:24]}  Qg6 {[%clk 0:01:07]} 24. Qxd5 {[%clk 0:01:21]}  Rf8 {[%clk 0:00:53]} 25. Qe4 {[%clk 0:01:07]}  h6 {[%clk 0:00:46]} 26. Qxg6 {[%clk 0:01:00]}  fxg6 {[%clk 0:00:47]} 27. Nf3 {[%clk 0:00:57]}  Rd8 {[%clk 0:00:47]} 28. Re4 {[%clk 0:00:57]}  Kf7 {[%clk 0:00:44]} 29. g3 {[%clk 0:00:54]}  Kf6 {[%clk 0:00:43]} 30. Kf1 {[%clk 0:00:52]}  Nb4 {[%clk 0:00:34]} 31. a4 {[%clk 0:00:45]}  Nc6 {[%clk 0:00:29]} 32. Ke2 {[%clk 0:00:42]}  Na5 {[%clk 0:00:26]} 33. b4 {[%clk 0:00:41]}  Nc4 {[%clk 0:00:26]} 34. d5 {[%clk 0:00:23]}  Nb6 {[%clk 0:00:24]} 35. Re6+ {[%clk 0:00:23]}  Kf7 {[%clk 0:00:21]} 36. Ne5+ {[%clk 0:00:23]}  Kg8 {[%clk 0:00:21]} 37. d6 {[%clk 0:00:19]}  Nd7 {[%clk 0:00:12]} 38. Nxg6 {[%clk 0:00:17]}  Kf7 {[%clk 0:00:11]} 39. Nf4 {[%clk 0:00:17]}  Nf8 {[%clk 0:00:10]} 40. Re7+ {[%clk 0:00:17]}  Kf6 {[%clk 0:00:10]} 41. Rxb7 {[%clk 0:00:15]}  Rxd6 {[%clk 0:00:09]} 42. Rxa7 {[%clk 0:00:15]}  Rd4 {[%clk 0:00:08]} 43. Ke3 {[%clk 0:00:14]}  Rc4 {[%clk 0:00:07]} 44. Kd3 {[%clk 0:00:14]}  Rc1 {[%clk 0:00:06]} 45. b5 {[%clk 0:00:14]}  g5 {[%clk 0:00:06]} 46. hxg5+ {[%clk 0:00:14]}  hxg5 {[%clk 0:00:07]} 47. Nd5+ {[%clk 0:00:14]}  Ke5 {[%clk 0:00:08]} 48. Ne3 {[%clk 0:00:15]}  Ne6 {[%clk 0:00:08]} 49. Kd2 {[%clk 0:00:15]}  Rb1 {[%clk 0:00:07]} 50. Re7 {[%clk 0:00:12]}  Kd6 {[%clk 0:00:06]} 51. Re8 {[%clk 0:00:12]}  Nc5 {[%clk 0:00:05]} 52. a5 {[%clk 0:00:10]}  Rxb5 {[%clk 0:00:05]} 53. Ra8 {[%clk 0:00:08]}  Ne4+ {[%clk 0:00:02]} 54. Ke2 {[%clk 0:00:08]}  Rb2+ {[%clk 0:00:02]} 55. Kf3 {[%clk 0:00:09]}  Nd2+ {[%clk 0:00:02]} 56. Kg4 {[%clk 0:00:09]}  Kc5 {[%clk 0:00:02]} 57. f4 {[%clk 0:00:09]}  gxf4 {[%clk 0:00:02]} 58. gxf4 {[%clk 0:00:09]}  Ne4 {[%clk 0:00:02]} 59. a6 {[%clk 0:00:09]}  Ra2 {[%clk 0:00:01]} 60. Kf3 {[%clk 0:00:09]} 1-0


[Site "https://www.chess.com"]

[Event "Titled Tuesday Blitz January 10 Early 2023"]
[White "Dvirnyy, Danyyil"]
[Black "Berezin, Viktor"]
[WhiteFideId "817570"]
[BlackFideId "14107872"]
[WhiteElo "2541"]
[BlackElo "2307"]
[Result "1-0"]
[Round "11"]
[TimeControl "180+2"]
[Date "2023.01.10"]
[WhiteClock "0:01:04"]
[BlackClock "0:00:04"]

1. e4 {[%clk 0:02:59]}  c6 {[%clk 0:02:56]} 2. d4 {[%clk 0:02:59]}  d5 {[%clk 0:02:56]} 3. exd5 {[%clk 0:03:00]}  cxd5 {[%clk 0:02:56]} 4. Bd3 {[%clk 0:03:00]}  Nc6 {[%clk 0:02:56]} 5. c3 {[%clk 0:03:01]}  Qc7 {[%clk 0:02:54]} 6. Ne2 {[%clk 0:03:01]}  Nf6 {[%clk 0:02:53]} 7. Bf4 {[%clk 0:03:00]}  Qb6 {[%clk 0:02:52]} 8. Qb3 {[%clk 0:03:00]}  Bg4 {[%clk 0:02:25]} 9. Nd2 {[%clk 0:02:54]}  e6 {[%clk 0:02:19]} 10. Ng3 {[%clk 0:02:51]}  Nh5 {[%clk 0:02:10]} 11. Nxh5 {[%clk 0:02:51]}  Bxh5 {[%clk 0:02:11]} 12. Qxb6 {[%clk 0:02:29]}  axb6 {[%clk 0:02:11]} 13. Bc7 {[%clk 0:02:30]}  Kd7 {[%clk 0:02:08]} 14. Bxb6 {[%clk 0:02:28]}  Bg6 {[%clk 0:02:05]} 15. Bxg6 {[%clk 0:02:24]}  hxg6 {[%clk 0:02:05]} 16. Nb3 {[%clk 0:02:25]}  Ra6 {[%clk 0:02:00]} 17. Bc5 {[%clk 0:02:25]}  b6 {[%clk 0:01:57]} 18. Bxf8 {[%clk 0:02:25]}  Rxf8 {[%clk 0:01:58]} 19. a3 {[%clk 0:02:21]}  Kd6 {[%clk 0:01:54]} 20. O-O-O {[%clk 0:02:19]}  Na5 {[%clk 0:01:53]} 21. Nd2 {[%clk 0:02:18]}  Rc8 {[%clk 0:01:48]} 22. h4 {[%clk 0:02:17]}  f6 {[%clk 0:01:46]} 23. g4 {[%clk 0:02:17]}  Nc6 {[%clk 0:01:43]} 24. Kb1 {[%clk 0:02:15]}  e5 {[%clk 0:01:40]} 25. dxe5+ {[%clk 0:02:12]}  Nxe5 {[%clk 0:01:37]} 26. f3 {[%clk 0:01:57]}  Ra5 {[%clk 0:01:27]} 27. h5 {[%clk 0:01:56]}  Rb5 {[%clk 0:01:24]} 28. hxg6 {[%clk 0:01:51]}  Nd3 {[%clk 0:01:18]} 29. Nb3 {[%clk 0:01:42]}  Nf2 {[%clk 0:00:52]} 30. Nd4 {[%clk 0:01:42]}  Rbc5 {[%clk 0:00:46]} 31. Nf5+ {[%clk 0:01:42]}  Kd7 {[%clk 0:00:46]} 32. Nxg7 {[%clk 0:01:32]}  Nxd1 {[%clk 0:00:46]} 33. Rxd1 {[%clk 0:01:31]}  Rg8 {[%clk 0:00:44]} 34. Nf5 {[%clk 0:01:26]}  Rxg6 {[%clk 0:00:43]} 35. Re1 {[%clk 0:01:21]}  Rg8 {[%clk 0:00:09]} 36. Re7+ {[%clk 0:01:20]}  Kc6 {[%clk 0:00:08]} 37. Re6+ {[%clk 0:01:21]}  Kb5 {[%clk 0:00:08]} 38. Rxf6 {[%clk 0:01:20]}  Kc4 {[%clk 0:00:08]} 39. Kc2 {[%clk 0:01:18]}  Kb5 {[%clk 0:00:04]} 40. b4 {[%clk 0:01:08]}  Rc4 {[%clk 0:00:02]} 41. Kb3 {[%clk 0:01:06]}  Rgc8 {[%clk 0:00:01]} 42. Nd6+ {[%clk 0:01:06]}  Ka6 {[%clk 0:00:01]} 43. Nxc8 {[%clk 0:01:06]}  Rxc8 {[%clk 0:00:01]} 44. g5 {[%clk 0:01:05]}  Rg8 {[%clk 0:00:01]} 45. f4 {[%clk 0:01:05]}  Rh8 {[%clk 0:00:02]} 46. g6 {[%clk 0:01:05]}  Rh3 {[%clk 0:00:03]} 47. f5 {[%clk 0:01:05]}  d4 {[%clk 0:00:03]} 48. Rc6 {[%clk 0:01:05]}  d3 {[%clk 0:00:03]} 49. Rd6 {[%clk 0:01:05]}  Rf3 {[%clk 0:00:04]} 50. g7 {[%clk 0:01:05]}  Rg3 {[%clk 0:00:04]} 51. f6 {[%clk 0:01:05]}  Rg6 {[%clk 0:00:04]} 52. Rxd3 {[%clk 0:01:05]}  Rxf6 {[%clk 0:00:04]} 53. g8=Q {[%clk 0:01:04]} 1-0


[Site "https://www.chess.com"]

[Event "Titled Tuesday Blitz January 10 Early 2023"]
[White "Indjic, Aleksandar"]
[Black "Mohamed Anees M"]
[WhiteFideId "911925"]
[BlackFideId "35065815"]
[WhiteElo "2618"]
[BlackElo "2315"]
[Result "1-0"]
[Round "11"]
[TimeControl "180+2"]
[Date "2023.01.10"]
[WhiteClock "0:01:47"]
[BlackClock "0:00:45"]

1. e3 {[%clk 0:03:00]}  d5 {[%clk 0:02:59]} 2. Qe2 {[%clk 0:03:00]}  Nf6 {[%clk 0:02:59]} 3. d3 {[%clk 0:03:00]}  c5 {[%clk 0:02:59]} 4. Nd2 {[%clk 0:03:01]}  Nc6 {[%clk 0:03:00]} 5. g3 {[%clk 0:03:01]}  g6 {[%clk 0:03:00]} 6. Bg2 {[%clk 0:02:59]}  Bg7 {[%clk 0:03:01]} 7. c3 {[%clk 0:02:57]}  d4 {[%clk 0:02:59]} 8. exd4 {[%clk 0:02:52]}  cxd4 {[%clk 0:03:00]} 9. c4 {[%clk 0:02:52]}  O-O {[%clk 0:03:00]} 10. Ngf3 {[%clk 0:02:51]}  e5 {[%clk 0:02:58]} 11. O-O {[%clk 0:02:51]}  Nd7 {[%clk 0:02:57]} 12. Ng5 {[%clk 0:02:46]}  h6 {[%clk 0:02:54]} 13. Nge4 {[%clk 0:02:46]}  f5 {[%clk 0:02:51]} 14. Nd6 {[%clk 0:02:39]}  Nc5 {[%clk 0:02:51]} 15. Nxc8 {[%clk 0:02:39]}  Rxc8 {[%clk 0:02:51]} 16. Nb3 {[%clk 0:02:25]}  Qe7 {[%clk 0:02:13]} 17. Nxc5 {[%clk 0:02:23]}  Qxc5 {[%clk 0:02:14]} 18. a3 {[%clk 0:02:23]}  a5 {[%clk 0:02:13]} 19. Bd2 {[%clk 0:02:23]}  Rce8 {[%clk 0:02:08]} 20. b4 {[%clk 0:02:21]}  axb4 {[%clk 0:02:05]} 21. Bd5+ {[%clk 0:02:21]}  Kh7 {[%clk 0:02:05]} 22. axb4 {[%clk 0:02:22]}  Nxb4 {[%clk 0:02:03]} 23. Bxb4 {[%clk 0:02:22]}  Qxb4 {[%clk 0:02:03]} 24. Rab1 {[%clk 0:02:23]}  Qc5 {[%clk 0:02:00]} 25. Rxb7 {[%clk 0:02:22]}  Re7 {[%clk 0:01:49]} 26. Rfb1 {[%clk 0:02:20]}  Rfe8 {[%clk 0:01:46]} 27. g4 {[%clk 0:02:19]}  e4 {[%clk 0:01:39]} 28. gxf5 {[%clk 0:02:19]}  gxf5 {[%clk 0:01:21]} 29. Qh5 {[%clk 0:01:57]}  Qc8 {[%clk 0:01:12]} 30. Rb8 {[%clk 0:01:49]}  Qc7 {[%clk 0:00:45]} 31. Rxe8 {[%clk 0:01:47]} 1-0


[Site "https://www.chess.com"]

[Event "Titled Tuesday Blitz January 10 Early 2023"]
[White "Mikhailovsky, Vladimir"]
[Black "Royal, Shreyas"]
[WhiteFideId "34105414"]
[BlackFideId "448869"]
[WhiteElo "2215"]
[BlackElo "2438"]
[Result "0-1"]
[Round "11"]
[TimeControl "180+2"]
[Date "2023.01.10"]
[WhiteClock "0:00:04"]
[BlackClock "0:00:42"]

1. e4 {[%clk 0:02:59]}  e5 {[%clk 0:03:00]} 2. Ke2 {[%clk 0:02:59]}  Nf6 {[%clk 0:02:59]} 3. d3 {[%clk 0:02:57]}  d5 {[%clk 0:02:58]} 4. f3 {[%clk 0:02:54]}  Nc6 {[%clk 0:02:57]} 5. c3 {[%clk 0:02:49]}  Bc5 {[%clk 0:02:52]} 6. Nd2 {[%clk 0:02:44]}  Be6 {[%clk 0:02:48]} 7. Nb3 {[%clk 0:02:44]}  Bb6 {[%clk 0:02:48]} 8. Bg5 {[%clk 0:02:45]}  h6 {[%clk 0:02:46]} 9. Bh4 {[%clk 0:02:43]}  Qd7 {[%clk 0:02:41]} 10. Bf2 {[%clk 0:02:36]}  O-O-O {[%clk 0:02:40]} 11. Nc5 {[%clk 0:02:14]}  Bxc5 {[%clk 0:02:33]} 12. Bxc5 {[%clk 0:02:15]}  dxe4 {[%clk 0:02:34]} 13. fxe4 {[%clk 0:02:04]}  Nxe4 {[%clk 0:02:27]} 14. dxe4 {[%clk 0:01:57]}  Bc4+ {[%clk 0:02:18]} 15. Kf2 {[%clk 0:01:34]}  Qe6 {[%clk 0:02:17]} 16. Qe1 {[%clk 0:01:17]}  Bxf1 {[%clk 0:02:10]} 17. Qxf1 {[%clk 0:01:13]}  Rd2+ {[%clk 0:02:09]} 18. Ne2 {[%clk 0:01:13]}  Rhd8 {[%clk 0:01:54]} 19. Be3 {[%clk 0:00:37]}  Rxb2 {[%clk 0:01:54]} 20. Rd1 {[%clk 0:00:35]}  Rf8 {[%clk 0:01:42]} 21. Kg1 {[%clk 0:00:23]}  f5 {[%clk 0:01:41]} 22. exf5 {[%clk 0:00:22]}  Rxf5 {[%clk 0:01:42]} 23. Qe1 {[%clk 0:00:23]}  Qxa2 {[%clk 0:01:38]} 24. Qg3 {[%clk 0:00:10]}  Rxe2 {[%clk 0:01:27]} 25. Qg4 {[%clk 0:00:10]}  Ne7 {[%clk 0:01:27]} 26. Qxg7 {[%clk 0:00:08]}  Qf7 {[%clk 0:01:12]} 27. Qh8+ {[%clk 0:00:04]}  Qf8 {[%clk 0:01:12]} 28. Qxh6 {[%clk 0:00:03]}  Qxh6 {[%clk 0:01:07]} 29. Bxh6 {[%clk 0:00:04]}  Rff2 {[%clk 0:01:07]} 30. h4 {[%clk 0:00:04]}  Rxg2+ {[%clk 0:01:07]} 31. Kf1 {[%clk 0:00:04]}  Nf5 {[%clk 0:01:06]} 32. Rh3 {[%clk 0:00:03]}  b5 {[%clk 0:00:51]} 33. Bg5 {[%clk 0:00:03]}  Ra2 {[%clk 0:00:49]} 34. Rf3 {[%clk 0:00:03]}  Ng3+ {[%clk 0:00:49]} 35. Rxg3 {[%clk 0:00:02]}  Rxg3 {[%clk 0:00:50]} 36. Re1 {[%clk 0:00:02]}  Rf3+ {[%clk 0:00:50]} 37. Kg1 {[%clk 0:00:03]}  Rf5 {[%clk 0:00:47]} 38. Re4 {[%clk 0:00:02]}  Rc2 {[%clk 0:00:46]} 39. Re3 {[%clk 0:00:02]}  a5 {[%clk 0:00:46]} 40. Rg3 {[%clk 0:00:02]}  a4 {[%clk 0:00:44]} 41. c4 {[%clk 0:00:03]}  b4 {[%clk 0:00:43]} 42. h5 {[%clk 0:00:03]}  a3 {[%clk 0:00:43]} 43. h6 {[%clk 0:00:04]}  a2 {[%clk 0:00:42]} 0-1


[Site "https://www.chess.com"]